[Event "Polish Youth Ekstraliga 2022"]
[Site "Lublin"]
[Date "2022.06.26"]
[Round "2.17"]
[White "Adamczyk, Zuzanna"]
[Black "Siekanska, Maria"]
[Result "1/2-1/2"]
[ECO "E38"]
[WhiteElo "1909"]
[BlackElo "1964"]
[Annotator "NA RC"]
[PlyCount "101"]
[EventDate "2022.06.24"]
[EventType "team-tourn"]
[EventCountry "POL"]
[SourceTitle "playchess.com"]
[Source "ChessBase"]
[SourceQuality "1"]
[TimeControl "40/5400+30:1800+30"]

1. d4 {[%emt 0:00:04]} Nf6 {[%emt 0:00:07]} 2. c4 {[%emt 0:00:20]} e6 {[%emt 0:00:07]} 3. Nc3 {[%emt 0:00:11]} Bb4 {[%emt 0:00:21]} 4. Qc2 {[%emt 0:00:12]} c5 {[%emt 0:02:40]} 5. dxc5 {[%emt 0:00:13]} Bxc5 {[%emt 0:00:12]} 6. e4 {[%emt 0:14:14]} d6 {[%emt 0:06:09]} 7. h3 {[%emt 0:03:21]} Nbd7 {[%emt 0:06:02]} 8. a3 {[%emt 0:10:44]} a6 {[%emt 0:04:19]} 9. Nf3 {[%emt 0:02:34]} O-O {[%emt 0:01:20]} 10. Be2 {[%emt 0:02:12]} Bb6 {[%emt 0:03:21]} 11. O-O {[%emt 0:01:54]} Bc7 {[%emt 0:01:18]} 12. Rd1 {[%emt 0:17:04]} b6 {[%emt 0:02:46]} 13. b4 {[%emt 0:04:55]} Bb7 {[%emt 0:02:09]} 14. Be3 {[%emt 0:06:35]} Qb8 {[%emt 0:02:28]} 15. Ne1 {[%emt 0:07:35]} Qa7 {[%emt 0:03:20]} 16. f3 {[%emt 0:01:29]} Rac8 {[%emt 0:00:21]} 17. Qa2 {[%emt 0:02:09]} Rfe8 {[%emt 0:06:00]} 18. Bf2 {[%emt 0:10:18]} Qa8 {[%emt 0:08:04]} 19. Bf1 {[%emt 0:00:36]} Kh8 {[%emt 0:08:29]} 20. Nc2 {[%emt 0:05:45]} Rg8 {[%emt 0:02:48]} 21. Ne3 {[%emt 0:03:22]} g5 {[%emt 0:00:57]} 22. Qb2 {[%emt 0:01:48]} Rg6 {[%emt 0:01:29]} 23. Ng4 {[%emt 0:00:53]} Nxg4 {[%emt 0:08:29]} 24. hxg4 {[%emt 0:00:12]} Kg8 {[%emt 0:00:41]} 25. Ne2 {[%emt 0:01:31]} Qb8 {[%emt 0:02:31]} 26. g3 {[%emt 0:01:43]} Ne5 {[%emt 0:06:33]} 27. Nd4 {[%emt 0:00:15]} Qa8 {[%emt 0:00:36]} 28. Rac1 {[%emt 0:00:45]} Rh6 {[%emt 0:08:12]} 29. Bg2 {[%emt 0:00:34]} b5 {[%emt 0:01:02]} 30. cxb5 {[%emt 0:00:49]} axb5 {[%emt 0:01:16]} 31. Qd2 {[%emt 0:00:32]} Bd8 {[%emt 0:01:44]} 32. Rxc8 {[%emt 0:00:08]} Qxc8 {[%emt 0:01:02]} 33. Nxb5 {[%emt 0:00:13]} d5 {[%emt 0:01:33]} 34. Nd6 {[%emt 0:00:19]} Qa8 {[%emt 0:01:43]} 35. Nxb7 {[%emt 0:00:04]} Nc4 {[%emt 0:00:18]} 36. Qe2 {[%emt 0:00:30]} Qxb7 {[%emt 0:00:59]} 37. exd5 {[%emt 0:00:13]} Nd6 {[%emt 0:01:28]} 38. Qe5 {[%emt 0:01:35]} Qa6 {[%emt 0:02:12]} 39. Bf1 {[%emt 0:00:52]} Qa4 {[%emt 0:00:51]} 40. Re1 exd5 {[%emt 0:00:00]} 41. Qxd5 {[%emt 0:08:18]} Qxa3 {[%emt 0:02:19]} 42. b5 {[%emt 0:05:50]} Qb2 {[%emt 0:01:48]} 43. Qa8 {[%emt 0:04:08]} Qf6 {[%emt 0:04:08]} 44. b6 {[%emt 0:00:39]} Kg7 {[%emt 0:00:55]} 45. Qa1 {[%emt 0:04:29]} Qxa1 {[%emt 0:01:51]} 46. Rxa1 {[%emt 0:00:03]} Nb7 47. Ra7 {[%emt 0:01:37]} Rxb6 {[%emt 0:00:41]} 48. Bd4+ {[%emt 0:06:25]} Kf8 {[%emt 0:04:44]} 49. Ra8 {[%emt 0:01:21]} Rd6 {[%emt 0:00:56]} 50. Bb2 {[%emt 0:00:23]} Ke7 {[%emt 0:02:34]} 51. Ba3 {[%emt 0:01:23]} 1/2-1/2

[Event "Polish Youth Ekstraliga 2022"]
[Site "Lublin"]
[Date "2022.06.26"]
[Round "2.18"]
[White "Ziobrowska, Maja"]
[Black "Gaszka, Zuzanna"]
[Result "1-0"]
[ECO "B15"]
[WhiteElo "1609"]
[BlackElo "1621"]
[Annotator "NA RC"]
[PlyCount "111"]
[EventDate "2022.06.24"]
[EventType "team-tourn"]
[EventCountry "POL"]
[SourceTitle "playchess.com"]
[Source "ChessBase"]
[SourceQuality "1"]
[TimeControl "40/5400+30:1800+30"]

1. e4 {[%emt 0:00:03]} c6 {[%emt 0:00:05]} 2. d4 {[%emt 0:00:52]} d5 {[%emt 0:00:05]} 3. Nc3 {[%emt 0:01:06]} dxe4 {[%emt 0:01:35]} 4. Nxe4 {[%emt 0:00:07]} Nf6 {[%emt 0:00:40]} 5. Nxf6+ {[%emt 0:01:47]} exf6 {[%emt 0:00:13]} 6. Nf3 {[%emt 0:01:51]} Bg4 {[%emt 0:02:49]} 7. Be2 {[%emt 0:02:12]} Bd6 {[%emt 0:01:43]} 8. O-O {[%emt 0:02:27]} O-O {[%emt 0:02:04]} 9. c4 {[%emt 0:02:10]} Re8 {[%emt 0:04:55]} 10. h3 {[%emt 0:10:12]} Bh5 {[%emt 0:01:28]} 11. Bd2 {[%emt 0:10:31]} Bc7 {[%emt 0:02:39]} 12. Bc3 {[%emt 0:01:23]} Qd6 {[%emt 0:07:13]} 13. g3 {[%emt 0:04:10]} Qe6 {[%emt 0:04:02]} 14. Re1 {[%emt 0:05:16]} Qxh3 {[%emt 0:06:41]} 15. Ng5 {[%emt 0:15:50]} Qd7 {[%emt 0:03:35]} 16. Bxh5 {[%emt 0:02:52]} Rxe1+ {[%emt 0:03:07]} 17. Qxe1 {[%emt 0:00:21]} fxg5 {[%emt 0:01:29]} 18. Qe3 {[%emt 0:00:18]} h6 {[%emt 0:04:38]} 19. Re1 {[%emt 0:00:12]} Na6 {[%emt 0:02:36]} 20. b4 {[%emt 0:07:15]} Bd6 {[%emt 0:03:31]} 21. a3 {[%emt 0:06:33]} Nc7 {[%emt 0:03:46]} 22. d5 {[%emt 0:06:36]} cxd5 {[%emt 0:06:00]} 23. Qd4 {[%emt 0:03:50]} Bf8 {[%emt 0:04:24]} 24. Bf3 {[%emt 0:03:22]} Rd8 {[%emt 0:04:26]} 25. Rd1 {[%emt 0:01:50]} Ne6 {[%emt 0:11:51]} 26. Qxa7 {[%emt 0:00:40]} d4 {[%emt 0:01:50]} 27. Bg4 {[%emt 0:01:05]} Qc7 {[%emt 0:04:15]} 28. Bxe6 {[%emt 0:01:23]} dxc3 {[%emt 0:00:32]} 29. Bd5 {[%emt 0:04:04]} g6 {[%emt 0:05:17]} 30. Rc1 {[%emt 0:01:04]} Bg7 {[%emt 0:02:08]} 31. Qxb7 {[%emt 0:00:17]} Qxb7 {[%emt 0:01:16]} 32. Bxb7 {[%emt 0:00:06]} Rd2 {[%emt 0:00:32]} 33. Bc6 {[%emt 0:01:21]} Ra2 {[%emt 0:00:59]} 34. a4 {[%emt 0:00:38]} Bd4 {[%emt 0:00:43]} 35. a5 {[%emt 0:01:40]} Bxf2+ {[%emt 0:02:35]} 36. Kf1 {[%emt 0:00:50]} Bd4 {[%emt 0:00:12]} 37. c5 {[%emt 0:01:01]} Kf8 {[%emt 0:01:25]} 38. Bb7 {[%emt 0:01:01]} f5 {[%emt 0:01:03]} 39. a6 {[%emt 0:00:34]} c2 {[%emt 0:00:36]} 40. Ke2 {[%emt 0:00:00]} Ke7 {[%emt 0:00:00]} 41. Kd3 {[%emt 0:01:45]} Be5 {[%emt 0:04:51]} 42. Rxc2 {[%emt 0:00:49]} Ra3+ {[%emt 0:04:39]} 43. Kc4 {[%emt 0:01:05]} f4 {[%emt 0:05:51]} 44. gxf4 {[%emt 0:01:45]} gxf4 {[%emt 0:00:24]} 45. b5 {[%emt 0:01:33]} f3 {[%emt 0:01:58]} 46. Rf2 {[%emt 0:01:10]} g5 {[%emt 0:01:52]} 47. Rxf3 {[%emt 0:00:08]} Ra4+ {[%emt 0:00:52]} 48. Kd5 {[%emt 0:00:37]} Bf4 {[%emt 0:04:23]} 49. b6 {[%emt 0:00:45]} g4 {[%emt 0:00:30]} 50. Rf1 {[%emt 0:00:35]} Bb8 {[%emt 0:01:42]} 51. Re1+ {[%emt 0:02:11]} Kf7 {[%emt 0:01:24]} 52. a7 {[%emt 0:01:48]} Bxa7 {[%emt 0:00:45]} 53. bxa7 {[%emt 0:00:05]} Rxa7 {[%emt 0:00:07]} 54. c6 {[%emt 0:00:03]} g3 {[%emt 0:00:12]} 55. c7 {[%emt 0:00:23]} Ra5+ {[%emt 0:00:35]} 56. Kd6 {[%emt 0:00:12]} 1-0

[Event "Polish Youth Ekstraliga 2022"]
[Site "Lublin"]
[Date "2022.06.26"]
[Round "2.19"]
[White "Kutowski, Marcel"]
[Black "Baum, Jonasz"]
[Result "0-1"]
[ECO "B90"]
[WhiteElo "1954"]
[BlackElo "2409"]
[Annotator "TA"]
[PlyCount "132"]
[EventDate "2022.06.24"]
[EventType "team-tourn"]
[EventCountry "POL"]
[SourceTitle "playchess.com"]
[Source "ChessBase"]
[SourceQuality "1"]
[TimeControl "40/5400+30:1800+30"]

{[%evp 10,132,16,-3,32,34,48,15,47,54,39,24,64,27,47,38,55,60,87,70,261,259,251,254,261,254,462,491,478,480,485,469,407,48,57,62,120,106,120,110,119,100,152,139,131,89,92,78,70,67,64,69,50,76,69,70,62,40,43,49,55,51,44,24,47,45,52,52,50,0,0,0,0,0,0,0,0,0,0,0,0,0,0,0,0,0,0,0,0,-8,0,0,0,-19,-11,-129,-36,-33,-15,-8,-8,-8,-8,-18,0,-1551,-1455,-29965,-29965,-5764,-5752,-29983,-29984,-29984,-29985,-29986,-29987,-29987,-29988,-29991,-29992,-29992,-29993,-29993,-29994]} 1. e4 {[%emt 0:00:02]} c5 {[%emt 0:00:10]} 2. Nf3 {[%emt 0:00:06]} d6 {[%emt 0:00:03]} 3. d4 {[%emt 0:00:05]} cxd4 {[%emt 0:00:05]} 4. Nxd4 {[%emt 0:00:04]} Nf6 {[%emt 0:00:04]} 5. Nc3 {[%emt 0:00:06]} a6 {[%emt 0:00:02]} 6. Rg1 {[%emt 0:00:21]} h5 {[%emt 0:18:15] B90: Sicilian Najdorf: Unusual White 6th moves, 6 Be3 Ng4 and 6 Be3 e5.} 7. Bg5 {[%emt 0:00:44]} Nc6 {[%emt 0:03:12]} 8. Qd2 {[%emt 0:06:28]} e6 {[%emt 0:09:16] [#] The position is equal.} 9. O-O-O $146 {[%emt 0:04:49] Nxc6 is the strong threat.} ({Predecessor:} 9. h3 Bd7 10. O-O-O Rc8 11. f4 Qb6 12. Be2 Nxd4 13. Qxd4 Qxd4 14. Rxd4 d5 15. Rgd1 {0-1 (58) Christiansen,J (2495)-Korobov,A (2652) Riadh 2017}) 9... Bd7 {[%emt 0:00:31]} 10. f4 {[%emt 0:08:52][%cal Oe4e5]} Be7 {[%emt 0:16:47]} 11. g3 {[%emt 0:09:06]} Qc7 {[%emt 0:12:58]} 12. Bg2 {[%emt 0:11:07]} Rc8 {[%emt 0:01:39]} 13. Rge1 {[%emt 0:03:51][%cal Oe4e5]} Na5 {[%emt 0:07:30]} 14. Bf1 {[%emt 0:09:11] Strongly threatening e5.} Nc4 {[%emt 0:17:38] Inhibits e5.} ({Black should try} 14... b5 $14) 15. Bxc4 $18 {[%emt 0:01:14]} Qxc4 {[%emt 0:00:01]} 16. e5 {[%emt 0:04:12]} Nd5 {[%emt 0:02:01] [#]} 17. Nxd5 {[%emt 0:02:11]} (17. Bxe7 Nxc3 18. Qxc3 (18. bxc3 Qxa2 19. Nb3 Qa3+ 20. Kb1 Kxe7 $16) 18... Qxc3 19. bxc3 Kxe7 $14) 17... Bxg5 {[%emt 0:04:13]} (17... Qxd5 18. Bxe7 Kxe7 19. Nf5+ Kf8) 18. Nb6 {[%emt 0:08:03]} ({Inferior is} 18. fxg5 Qxd5 19. Qb4 Qxa2 $11) 18... Qxa2 {[%emt 0:00:02][%cal Ra2a1]} 19. Qb4 {[%emt 0:00:11]} ({Less strong is} 19. Nb3 Rc6 $16) 19... Bd8 {[%emt 0:01:40]} 20. Nxc8 {[%emt 0:01:04]} Bxc8 {[%emt 0:00:01]} 21. Qa3 {[%emt 0:02:48]} (21. Nb3 $18 O-O 22. Kd2) 21... Qxa3 $14 {[%emt 0:00:05]} 22. bxa3 {[%emt 0:00:07]} dxe5 {[%emt 0:01:22]} (22... d5 $14) 23. Rxe5 $16 {[%emt 0:06:30]} Be7 {[%emt 0:01:34]} 24. Re3 {[%emt 0:01:14]} O-O {[%emt 0:02:30]} 25. Kb1 {[%emt 0:03:53]} g6 {[%emt 0:00:29] Inhibits Nf5.} (25... Rd8 $142) 26. Nf3 {[%emt 0:02:38]} f6 {[%emt 0:00:39]} 27. Nd4 {[%emt 0:02:07]} Rd8 {[%emt 0:00:32]} 28. Red3 {[%emt 0:00:38][%cal Od4f5]} Kf7 {[%emt 0:00:24]} 29. Kb2 {[%emt 0:00:39]} Rd6 {[%emt 0:00:30]} 30. Nf3 {[%emt 0:01:57]} Rc6 {[%emt 0:00:30]} 31. Rc3 {[%emt 0:00:50]} Rxc3 {[%emt 0:00:18]} 32. Kxc3 {[%emt 0:00:20][%mdl 4096] Endgame KRN-KB} b5 {[%emt 0:00:30]} 33. Kb2 {[%emt 0:02:35]} Bb7 {[%emt 0:00:01]} 34. Ne1 {[%emt 0:00:59]} Bd5 {[%emt 0:01:00]} 35. Nd3 {[%emt 0:00:05]} a5 {[%emt 0:00:18]} 36. Ra1 {[%emt 0:01:17]} Bc6 {[%emt 0:00:22]} 37. Kc3 {[%emt 0:01:34]} Bd6 {[%emt 0:00:38]} 38. Kd4 {[%emt 0:01:41]} g5 {[%emt 0:00:58]} 39. c4 {[%emt 0:01:35]} (39. a4 $1 $14 b4 40. fxg5) 39... gxf4 $11 {[%emt 0:00:25]} 40. gxf4 {[%emt 0:00:00]} bxc4 {[%emt 0:00:00]} 41. Kxc4 {[%emt 0:00:49]} Kg6 {[%emt 0:02:38]} 42. Kd4 {[%emt 0:04:04]} Kf5 {[%emt 0:01:39]} 43. Ke3 {[%emt 0:08:10]} a4 {[%emt 0:05:15]} 44. Rc1 {[%emt 0:03:22]} Bd5 {[%emt 0:00:51]} 45. Rc3 {[%emt 0:01:23]} Bb3 {[%emt 0:04:10]} 46. Nc5 {[%emt 0:01:03]} Bxf4+ {[%emt 0:01:43]} 47. Kf2 {[%emt 0:00:08]} Bd5 {[%emt 0:03:22]} ({But not} 47... Bxh2 48. Nxb3 axb3 49. Rxb3 $18) 48. Nxa4 {[%emt 0:00:34]} Be5 {[%emt 0:02:00] A strong pair of Bishops.} 49. Rd3 {[%emt 0:00:37] Against Bd4+} Be4 {[%emt 0:00:40]} 50. Rb3 {[%emt 0:03:19]} Bd4+ {[%emt 0:06:10]} 51. Kg3 {[%emt 0:02:08]} e5 {[%emt 0:01:14][%mdl 1024] Black has compensation.} 52. Nb6 {[%emt 0:05:16]} (52. Nc3 $11 {keeps the balance.}) 52... Bc2 {[%emt 0:01:04] Black is more active.} (52... Ke6 $17 {White must now prevent ...f5.} 53. Kh4 Bc2) 53. Rb4 $1 $15 {[%emt 0:02:31]} Ke4 {[%emt 0:00:26]} 54. Nd7 $1 {[%emt 0:01:06]} f5 {[%emt 0:00:31][%cal Bf6f5,Bf5f4,Bf4f3][%mdl 32]} 55. Nf6+ $1 {[%emt 0:00:57]} Ke3 {[%emt 0:00:20] aiming for ...f4+.} 56. Nd5+ {[%emt 0:02:59]} Ke2 {[%emt 0:00:00]} 57. h4 $2 {[%emt 0:02:35][%mdl 8192] [#]} (57. Kh4 $11) 57... Be4 $1 $19 {[%emt 0:02:38]} 58. Nf6 {[%emt 0:00:49]} f4+ {[%emt 0:00:15]} 59. Kh2 {[%emt 0:00:28]} Bg6 {[%emt 0:00:40] ( -> ...f3)} 60. Nd5 {[%emt 0:00:29]} f3 {[%emt 0:01:51] Black mates.} 61. Rxd4 {[%emt 0:02:28]} exd4 {[%emt 0:00:37] KB-KN} 62. Nf4+ {[%emt 0:00:03]} Ke3 {[%emt 0:01:55]} 63. Kg3 {[%emt 0:00:54] [#]} d3 $1 {[%emt 0:01:25]} 64. Nh3 {[%emt 0:00:31]} (64. Nd5+ Kd4) 64... d2 {[%emt 0:00:06]} 65. Nf2 {[%emt 0:00:04]} Bc2 {[%emt 0:00:11]} 66. a4 {[%emt 0:00:13]} d1=Q {[%emt 0:00:24] Black used his chance.  Weighted Error Value: White=0.54/Black=0.23 (precise)} 0-1

[Event "Polish Youth Ekstraliga 2022"]
[Site "Lublin"]
[Date "2022.06.26"]
[Round "2.20"]
[White "Zdybel, Przemyslaw"]
[Black "Wilk, Igor"]
[Result "1-0"]
[ECO "B11"]
[WhiteElo "2037"]
[BlackElo "1824"]
[Annotator "NA RC"]
[PlyCount "63"]
[EventDate "2022.06.24"]
[EventType "team-tourn"]
[EventCountry "POL"]
[SourceTitle "playchess.com"]
[Source "ChessBase"]
[SourceQuality "1"]
[TimeControl "40/5400+30:1800+30"]

1. e4 {[%emt 0:00:03]} c6 {[%emt 0:00:07]} 2. Nf3 {[%emt 0:00:06]} d5 {[%emt 0:00:05]} 3. Nc3 {[%emt 0:00:04]} Bg4 {[%emt 0:00:07]} 4. h3 {[%emt 0:00:05]} Bxf3 {[%emt 0:00:07]} 5. Qxf3 {[%emt 0:00:05]} e6 {[%emt 0:00:10]} 6. d3 {[%emt 0:00:21]} Nd7 {[%emt 0:00:27]} 7. a3 {[%emt 0:06:43]} Ngf6 {[%emt 0:03:37]} 8. g3 {[%emt 0:00:36]} g6 {[%emt 0:05:07]} 9. Bg2 {[%emt 0:01:39]} Bg7 {[%emt 0:00:14]} 10. Qe2 {[%emt 0:00:16]} d4 {[%emt 0:09:04]} 11. Nb1 {[%emt 0:01:47]} e5 {[%emt 0:00:18]} 12. O-O {[%emt 0:01:20]} Qe7 {[%emt 0:02:35]} 13. Nd2 {[%emt 0:03:56]} O-O-O {[%emt 0:02:51]} 14. b4 {[%emt 0:03:36]} Ne8 {[%emt 0:02:11]} 15. a4 {[%emt 0:02:36]} Nd6 {[%emt 0:08:12]} 16. Nb3 {[%emt 0:08:34]} Kb8 {[%emt 0:06:42]} 17. Ba3 {[%emt 0:05:35]} Rc8 {[%emt 0:01:50]} 18. c4 {[%emt 0:16:01]} f5 {[%emt 0:08:19]} 19. c5 {[%emt 0:02:30]} Nf7 {[%emt 0:01:49]} 20. exf5 {[%emt 0:05:28]} gxf5 {[%emt 0:01:13]} 21. b5 {[%emt 0:04:19]} e4 {[%emt 0:04:41]} 22. bxc6 {[%emt 0:00:08]} Rxc6 {[%emt 0:00:26]} 23. Na5 {[%emt 0:00:57]} Nde5 {[%emt 0:04:42]} 24. Nxc6+ {[%emt 0:01:47]} Nxc6 {[%emt 0:00:07]} 25. Rab1 {[%emt 0:00:44]} Re8 {[%emt 0:03:55]} 26. Qh5 {[%emt 0:01:18]} Qf6 {[%emt 0:02:08]} 27. Bc1 {[%emt 0:02:32]} h6 {[%emt 0:04:12]} 28. Bf4+ {[%emt 0:02:22]} Kc8 {[%emt 0:00:08]} 29. Rfe1 {[%emt 0:00:31]} Nce5 {[%emt 0:02:19]} 30. dxe4 {[%emt 0:01:27]} Nd3 {[%emt 0:00:54]} 31. e5 {[%emt 0:00:38]} Ndxe5 {[%emt 0:00:48]} 32. Bxe5 {[%emt 0:01:02]} 1-0

[Event "Polish Youth Ekstraliga 2022"]
[Site "Lublin"]
[Date "2022.06.26"]
[Round "2.21"]
[White "Bartoszczuk, Adam"]
[Black "Mulawa, Cyprian"]
[Result "1-0"]
[ECO "B83"]
[WhiteElo "1662"]
[BlackElo "2050"]
[Annotator "NA RC"]
[PlyCount "89"]
[EventDate "2022.06.24"]
[EventType "team-tourn"]
[EventCountry "POL"]
[SourceTitle "playchess.com"]
[Source "ChessBase"]
[SourceQuality "1"]
[TimeControl "40/5400+30:1800+30"]

1. e4 {[%emt 0:00:02]} c5 {[%emt 0:00:45]} 2. Nf3 {[%emt 0:00:06]} e6 {[%emt 0:00:31]} 3. d4 {[%emt 0:00:12]} cxd4 {[%emt 0:00:09]} 4. Nxd4 {[%emt 0:00:03]} Nf6 {[%emt 0:00:05]} 5. Nc3 {[%emt 0:00:25]} d6 {[%emt 0:00:04]} 6. Be2 {[%emt 0:05:40]} Be7 {[%emt 0:00:26]} 7. O-O {[%emt 0:00:13]} O-O {[%emt 0:01:06]} 8. Be3 {[%emt 0:00:59]} a6 {[%emt 0:01:55]} 9. f4 {[%emt 0:04:08]} Qc7 {[%emt 0:02:36]} 10. Qe1 {[%emt 0:06:47]} Nbd7 {[%emt 0:04:35]} 11. Bf3 {[%emt 0:02:18]} Nb6 {[%emt 0:03:29]} 12. Rd1 {[%emt 0:12:42]} Bd7 13. Qg3 Kh8 14. e5 dxe5 {[%emt 0:16:45]} 15. fxe5 {[%emt 0:01:20]} Ng8 {[%emt 0:07:46]} 16. Be4 {[%emt 0:12:13]} Nc4 {[%emt 0:04:25]} 17. Bf4 {[%emt 0:04:17]} Rac8 {[%emt 0:02:14]} 18. Nce2 {[%emt 0:05:25]} b5 {[%emt 0:05:48]} 19. b3 {[%emt 0:04:29]} Nb6 {[%emt 0:00:59]} 20. Rf3 {[%emt 0:11:20]} g6 {[%emt 0:15:31]} 21. Rdf1 {[%emt 0:06:52]} Kg7 {[%emt 0:01:37]} 22. Be3 {[%emt 0:07:48]} Qb8 {[%emt 0:04:47]} 23. Nf4 {[%emt 0:01:49]} Kh8 {[%emt 0:02:05]} 24. Bxg6 {[%emt 0:10:08]} fxg6 {[%emt 0:01:15]} 25. Nxg6+ {[%emt 0:00:08]} hxg6 {[%emt 0:00:11]} 26. Qxg6 {[%emt 0:00:05]} Bh4 {[%emt 0:03:14]} 27. Rh3 {[%emt 0:01:24]} Rxf1+ {[%emt 0:00:38]} 28. Kxf1 {[%emt 0:00:06]} Rf8+ {[%emt 0:00:48]} 29. Kg1 {[%emt 0:00:44]} Qd8 {[%emt 0:01:16]} 30. g3 {[%emt 0:00:48]} Be8 {[%emt 0:01:43]} 31. Qg4 {[%emt 0:01:52]} Rf7 {[%emt 0:03:21]} 32. Rxh4+ {[%emt 0:00:28]} Rh7 {[%emt 0:00:02]} 33. Rxh7+ {[%emt 0:00:24]} Kxh7 {[%emt 0:00:01]} 34. Nxe6 {[%emt 0:00:11]} Qe7 {[%emt 0:00:32]} 35. Bxb6 {[%emt 0:01:09]} Nh6 {[%emt 0:00:51]} 36. Ng5+ {[%emt 0:00:47]} Kh8 {[%emt 0:00:03]} 37. Qf4 {[%emt 0:00:24]} Bg6 {[%emt 0:01:24]} 38. c3 {[%emt 0:01:05]} Nf5 {[%emt 0:00:55]} 39. Bd4 {[%emt 0:00:36]} Qb7 {[%emt 0:01:19]} 40. e6+ {[%emt 0:00:14]} Kg8 {[%emt 0:00:15]} 41. Qe5 {[%emt 0:30:43]} Nxd4 {[%emt 0:30:26]} 42. Qxd4 {[%emt 0:00:00]} Qc8 {[%emt 0:00:00]} 43. e7 {[%emt 0:00:00]} Qf5 {[%emt 0:00:00]} 44. Qd8+ {[%emt 0:00:00]} Kg7 {[%emt 0:00:00]} 45. Qf8+ {[%emt 0:00:00]} 1-0

[Event "Polish Youth Ekstraliga 2022"]
[Site "Lublin"]
[Date "2022.06.26"]
[Round "2.22"]
[White "Suska, Szymon"]
[Black "Kaszuba, Michal"]
[Result "1-0"]
[ECO "A01"]
[WhiteElo "1604"]
[BlackElo "1307"]
[Annotator "NA RC"]
[PlyCount "131"]
[EventDate "2022.06.24"]
[EventType "team-tourn"]
[EventCountry "POL"]
[SourceTitle "playchess.com"]
[Source "ChessBase"]
[SourceQuality "1"]
[TimeControl "40/5400+30:1800+30"]

1. b3 {[%emt 0:00:07]} d5 {[%emt 0:02:09]} 2. Bb2 {[%emt 0:00:04]} c6 {[%emt 0:01:13]} 3. Nf3 {[%emt 0:00:44]} Nf6 {[%emt 0:04:12]} 4. e3 {[%emt 0:00:07]} Bf5 {[%emt 0:02:14]} 5. Be2 {[%emt 0:00:24]} e6 {[%emt 0:08:37]} 6. Ne5 {[%emt 0:00:18]} Nbd7 {[%emt 0:20:03]} 7. Nxd7 {[%emt 0:00:08]} Nxd7 {[%emt 0:01:15]} 8. d3 {[%emt 0:00:15]} f6 {[%emt 0:06:16]} 9. Nd2 {[%emt 0:01:52]} e5 {[%emt 0:08:57]} 10. e4 {[%emt 0:01:43]} Be6 {[%emt 0:06:38]} 11. O-O {[%emt 0:03:43]} Bd6 {[%emt 0:02:43]} 12. Bg4 {[%emt 0:03:24]} Qe7 {[%emt 0:00:34]} 13. Bxe6 {[%emt 0:02:10]} Qxe6 {[%emt 0:00:08]} 14. Qe2 {[%emt 0:01:39]} O-O {[%emt 0:06:07]} 15. c4 {[%emt 0:06:14]} d4 {[%emt 0:01:22]} 16. a3 {[%emt 0:07:36]} b6 {[%emt 0:05:55]} 17. Qd1 {[%emt 0:12:59]} Rac8 {[%emt 0:04:40]} 18. b4 {[%emt 0:04:48]} b5 {[%emt 0:02:05]} 19. Qb3 {[%emt 0:04:16]} a6 {[%emt 0:03:53]} 20. c5 {[%emt 0:08:27]} Qxb3 {[%emt 0:00:29]} 21. Nxb3 {[%emt 0:00:04]} Bc7 {[%emt 0:00:34]} 22. a4 {[%emt 0:08:14]} Ra8 {[%emt 0:00:46]} 23. a5 {[%emt 0:00:06]} Rf7 {[%emt 0:01:17]} 24. f3 {[%emt 0:01:22]} g5 {[%emt 0:04:00]} 25. Rf2 {[%emt 0:00:28]} Kf8 {[%emt 0:03:24]} 26. Kf1 {[%emt 0:00:21]} Ke7 {[%emt 0:00:14]} 27. Ke2 {[%emt 0:00:04]} Nf8 {[%emt 0:01:01]} 28. Nd2 {[%emt 0:00:04]} Ne6 {[%emt 0:00:31]} 29. g3 {[%emt 0:00:03]} h5 {[%emt 0:00:38]} 30. Rg1 {[%emt 0:06:38]} Rg8 {[%emt 0:01:40]} 31. Nf1 {[%emt 0:00:57]} Rgg7 {[%emt 0:00:34]} 32. Bc1 {[%emt 0:00:57]} h4 {[%emt 0:01:24]} 33. gxh4 {[%emt 0:04:55]} gxh4 {[%emt 0:00:41]} 34. Rfg2 {[%emt 0:00:10]} Rxg2+ {[%emt 0:00:35]} 35. Rxg2 {[%emt 0:00:02]} Rg7 {[%emt 0:00:32]} 36. Rg4 {[%emt 0:03:27]} Rxg4 {[%emt 0:00:25]} 37. fxg4 {[%emt 0:00:03]} Ng5 {[%emt 0:00:40]} 38. Nd2 {[%emt 0:00:47]} Kf7 {[%emt 0:00:31]} 39. Nf3 {[%emt 0:00:30]} Nxf3 {[%emt 0:00:21]} 40. Kxf3 {[%emt 0:00:00]} Kg6 {[%emt 0:00:00]} 41. Kg2 {[%emt 0:01:01]} Bd8 {[%emt 0:01:06]} 42. Kh3 {[%emt 0:00:16]} Be7 {[%emt 0:01:02]} 43. Bd2 {[%emt 0:00:11]} Bd8 {[%emt 0:00:50]} 44. Be1 {[%emt 0:01:26]} Kg5 {[%emt 0:00:18]} 45. Bd2+ {[%emt 0:00:08]} Kg6 {[%emt 0:00:07]} 46. Kxh4 {[%emt 0:12:04]} f5+ {[%emt 0:01:51]} 47. Kg3 {[%emt 0:00:32]} fxe4 {[%emt 0:07:11]} 48. dxe4 {[%emt 0:10:21]} Bg5 {[%emt 0:00:22]} 49. Bxg5 {[%emt 0:00:08]} Kxg5 {[%emt 0:00:05]} 50. h4+ {[%emt 0:00:06]} Kg6 {[%emt 0:00:29]} 51. g5 {[%emt 0:00:08]} Kh5 {[%emt 0:11:54]} 52. Kf3 {[%emt 0:00:22]} Kg6 {[%emt 0:04:25]} 53. Kg4 {[%emt 0:00:04]} Kf7 {[%emt 0:05:02]} 54. h5 {[%emt 0:00:09]} Kg7 {[%emt 0:01:06]} 55. g6 {[%emt 0:00:21]} Kf6 {[%emt 0:00:52]} 56. Kg3 {[%emt 0:00:05]} Kg7 {[%emt 0:01:51]} 57. Kf3 {[%emt 0:00:04]} Kh6 {[%emt 0:00:38]} 58. Kg4 {[%emt 0:00:07]} Kg7 {[%emt 0:00:11]} 59. Kg5 {[%emt 0:02:36]} d3 {[%emt 0:00:47]} 60. h6+ {[%emt 0:00:05]} Kf8 {[%emt 0:00:09]} 61. Kf6 {[%emt 0:00:13]} Kg8 {[%emt 0:00:53]} 62. g7 {[%emt 0:00:31]} Kh7 {[%emt 0:00:18]} 63. Kf7 {[%emt 0:00:06]} Kxh6 {[%emt 0:00:13]} 64. g8=Q {[%emt 0:00:09]} Kh5 {[%emt 0:00:07]} 65. Qg2 {[%emt 0:00:19]} d2 {[%emt 0:00:14]} 66. Qxd2 {[%emt 0:00:04]} 1-0